Workbook

Sheet 18 Dönemlik Bütçe
B1: şirket bütçesi
G2: BAŞLANGIÇ TARİHİ | H2: 2011-01-01 | I2: DÖNEM SÜRESi (GÜN) | K2: 14 | L2: BİTİŞ TARİHİ | M2: =TEXT(T5,"gg.aa.yyyy") -> 26.08.2012
C5: =UPPER(TEXT(H2,"gg-aaa")) -> 01-OCA | D5: =UPPER(TEXT(C5+GünAralığı,"gg-aaa")) -> 15-OCA | E5: 29-OCA | F5: 12-ŞUB | G5: 26-ŞUB | H5: 11-MAR | I5: 25-MAR | J5: 08-NİS | K5: 22-NİS | L5: 06-MAY | M5: 20-MAY | N5: 03-HAZ | O5: 17-HAZ | P5: 01-TEM | Q5: 15-TEM | R5: 29-TEM | S5: 12-AĞU | T5: 26-AĞU | U5: TOPLAM | V5: EĞİLİM
B6: NET GELİR | C6: =GelirTablosu[[#Totals],[Hafta 1]]-HarcamalarTablosu[[#Totals],[Hafta 1]] -> 1,750.00 TL | D6: =GelirTablosu[[#Totals],[Hafta 2]]-HarcamalarTablosu[[#Totals],[Hafta 2]] -> 2,236.00 TL | E6: =GelirTablosu[[#Totals],[Hafta 3]]-HarcamalarTablosu[[#Totals],[Hafta 3]] -> 1,442.00 TL | F6: =GelirTablosu[[#Totals],[Hafta 4]]-HarcamalarTablosu[[#Totals],[Hafta 4]] -> 2,253.00 TL | G6: =GelirTablosu[[#Totals],[Hafta 5]]-HarcamalarTablosu[[#Totals],[Hafta 5]] -> 1,533.00 TL | H6: =GelirTablosu[[#Totals],[Hafta 6]]-HarcamalarTablosu[[#Totals],[Hafta 6]] -> 1,086.00 TL | I6: =GelirTablosu[[#Totals],[Hafta 7]]-HarcamalarTablosu[[#Totals],[Hafta 7]] -> 1,594.00 TL | J6: =GelirTablosu[[#Totals],[Hafta 8]]-HarcamalarTablosu[[#Totals],[Hafta 8]] -> 0 | K6: =GelirTablosu[[#Totals],[Hafta 9]]-HarcamalarTablosu[[#Totals],[Hafta 9]] -> 0 | L6: =GelirTablosu[[#Totals],[Hafta 10]]-HarcamalarTablosu[[#Totals],[Hafta 10]] -> 0 | M6: =GelirTablosu[[#Totals],[Hafta 11]]-HarcamalarTablosu[[#Totals],[Hafta 11]] -> 0 | N6: =GelirTablosu[[#Totals],[Hafta 12]]-HarcamalarTablosu[[#Totals],[Hafta 12]] -> 0 | O6: =GelirTablosu[[#Totals],[Hafta 13]]-HarcamalarTablosu[[#Totals],[Hafta 13]] -> 0 | P6: =GelirTablosu[[#Totals],[Hafta 14]]-HarcamalarTablosu[[#Totals],[Hafta 14]] -> 0 | Q6: =GelirTablosu[[#Totals],[Hafta 15]]-HarcamalarTablosu[[#Totals],[Hafta 15]] -> 0 | R6: =GelirTablosu[[#Totals],[Hafta 16]]-HarcamalarTablosu[[#Totals],[Hafta 16]] -> 0 | S6: =GelirTablosu[[#Totals],[Hafta 17]]-HarcamalarTablosu[[#Totals],[Hafta 17]] -> 0 | T6: =GelirTablosu[[#Totals],[Hafta 18]]-HarcamalarTablosu[[#Totals],[Hafta 18]] -> 0 | U6: =GelirTablosu[[#Totals],[Toplam]]-HarcamalarTablosu[[#Totals],[Toplam]] -> 11,894.00 TL
A8: gelir
B9: GELİR KALEMİ 1 | C9: 3,000.00 TL | D9: 3,500.00 TL | E9: 2,978.00 TL | F9: 3,384.00 TL | G9: 2,858.00 TL | H9: 2,809.00 TL | I9: 3,220.00 TL | U9: =SUM(GelirTablosu[[#This Row],[Hafta 1]:[Hafta 18]]) -> 21,749.00 TL
B10: GELİR KALEMİ 2 | C10: 1150.00 | D10: 1200.00 | E10: 1144.00 | F10: 1400.00 | G10: 1358.00 | H10: 1154.00 | I10: 1245.00 | U10: =SUM(GelirTablosu[[#This Row],[Hafta 1]:[Hafta 18]]) -> 8651.00
B11: GELİR KALEMİ 3 | C11: 300.00 | D11: 350.00 | E11: 392.00 | F11: 326.00 | G11: 381.00 | H11: 364.00 | I11: 315.00 | U11: =SUM(GelirTablosu[[#This Row],[Hafta 1]:[Hafta 18]]) -> 2428.00
B12: TOPLAM GELİR | C12: =SUBTOTAL(109,GelirTablosu[Hafta 1]) -> 4,450.00 TL | D12: =SUBTOTAL(109,GelirTablosu[Hafta 2]) -> 5,050.00 TL | E12: =SUBTOTAL(109,GelirTablosu[Hafta 3]) -> 4,514.00 TL | F12: =SUBTOTAL(109,GelirTablosu[Hafta 4]) -> 5,110.00 TL | G12: =SUBTOTAL(109,GelirTablosu[Hafta 5]) -> 4,597.00 TL | H12: =SUBTOTAL(109,GelirTablosu[Hafta 6]) -> 4,327.00 TL | I12: =SUBTOTAL(109,GelirTablosu[Hafta 7]) -> 4,780.00 TL | J12: =SUBTOTAL(109,GelirTablosu[Hafta 8]) -> 0 | K12: =SUBTOTAL(109,GelirTablosu[Hafta 9]) -> 0 | L12: =SUBTOTAL(109,GelirTablosu[Hafta 10]) -> 0 | M12: =SUBTOTAL(109,GelirTablosu[Hafta 11]) -> 0 | N12: =SUBTOTAL(109,GelirTablosu[Hafta 12]) -> 0 | O12: =SUBTOTAL(109,GelirTablosu[Hafta 13]) -> 0 | P12: =SUBTOTAL(109,GelirTablosu[Hafta 14]) -> 0 | Q12: =SUBTOTAL(109,GelirTablosu[Hafta 15]) -> 0 | R12: =SUBTOTAL(109,GelirTablosu[Hafta 16]) -> 0 | S12: =SUBTOTAL(109,GelirTablosu[Hafta 17]) -> 0 | T12: =SUBTOTAL(109,GelirTablosu[Hafta 18]) -> 0 | U12: =SUBTOTAL(109,GelirTablosu[Toplam]) -> 32,828.00 TL
A13: gider
A14: harcamalar
B15: ÜCRETLER | C15: 1,500.00 TL | D15: 1,577.00 TL | E15: 1,823.00 TL | F15: 1,529.00 TL | G15: 1,759.00 TL | H15: 1,947.00 TL | I15: 1,875.00 TL | U15: =SUM(HarcamalarTablosu[[#This Row],[Hafta 1]:[Hafta 18]]) -> 12,010.00 TL
B16: KİRA | C16: 1000.00 | D16: 1000.00 | E16: 1000.00 | F16: 1000.00 | G16: 1000.00 | H16: 1000.00 | I16: 1000.00 | U16: =SUM(HarcamalarTablosu[[#This Row],[Hafta 1]:[Hafta 18]]) -> 7000.00
B17: ELEKTRİK | C17: 40.00 | D17: 43.00 | E17: 40.00 | F17: 42.00 | G17: 45.00 | H17: 40.00 | I17: 42.00 | U17: =SUM(HarcamalarTablosu[[#This Row],[Hafta 1]:[Hafta 18]]) -> 292.00
B18: TELEFON | C18: 12.00 | D18: 11.00 | E18: 13.00 | F18: 14.00 | G18: 11.00 | H18: 15.00 | I18: 15.00 | U18: =SUM(HarcamalarTablosu[[#This Row],[Hafta 1]:[Hafta 18]]) -> 91.00
B19: INTERNET | C19: 15.00 | D19: 15.00 | E19: 15.00 | F19: 15.00 | G19: 15.00 | H19: 15.00 | I19: 15.00 | U19: =SUM(HarcamalarTablosu[[#This Row],[Hafta 1]:[Hafta 18]]) -> 105.00
B20: SU | C20: 11.00 | D20: 10.00 | E20: 13.00 | F20: 10.00 | G20: 13.00 | H20: 10.00 | I20: 12.00 | U20: =SUM(HarcamalarTablosu[[#This Row],[Hafta 1]:[Hafta 18]]) -> 79.00
B21: YAKIT | C21: 23.00 | D21: 27.00 | E21: 26.00 | F21: 27.00 | G21: 22.00 | H21: 29.00 | I21: 21.00 | U21: =SUM(HarcamalarTablosu[[#This Row],[Hafta 1]:[Hafta 18]]) -> 175.00
B22: ATIK TOPLAMA | C22: 4.00 | D22: 4.00 | E22: 4.00 | F22: 4.00 | G22: 4.00 | H22: 4.00 | I22: 4.00 | U22: =SUM(HarcamalarTablosu[[#This Row],[Hafta 1]:[Hafta 18]]) -> 28.00
B23: KABLO TV | C23: 10.00 | D23: 10.00 | E23: 10.00 | F23: 10.00 | G23: 10.00 | H23: 10.00 | I23: 10.00 | U23: =SUM(HarcamalarTablosu[[#This Row],[Hafta 1]:[Hafta 18]]) -> 70.00
B24: BÜRO MALZEMELERİ | C24: 25.00 | D24: 57.00 | E24: 68.00 | F24: 146.00 | G24: 125.00 | H24: 111.00 | I24: 132.00 | U24: =SUM(HarcamalarTablosu[[#This Row],[Hafta 1]:[Hafta 18]]) -> 664.00
B25: SİGORTA | C25: 60.00 | D25: 60.00 | E25: 60.00 | F25: 60.00 | G25: 60.00 | H25: 60.00 | I25: 60.00 | U25: =SUM(HarcamalarTablosu[[#This Row],[Hafta 1]:[Hafta 18]]) -> 420.00
B26: TOPLAM GİDERLER | C26: =SUBTOTAL(109,HarcamalarTablosu[Hafta 1]) -> 2,700.00 TL | D26: =SUBTOTAL(109,HarcamalarTablosu[Hafta 2]) -> 2,814.00 TL | E26: =SUBTOTAL(109,HarcamalarTablosu[Hafta 3]) -> 3,072.00 TL | F26: =SUBTOTAL(109,HarcamalarTablosu[Hafta 4]) -> 2,857.00 TL | G26: =SUBTOTAL(109,HarcamalarTablosu[Hafta 5]) -> 3,064.00 TL | H26: =SUBTOTAL(109,HarcamalarTablosu[Hafta 6]) -> 3,241.00 TL | I26: =SUBTOTAL(109,HarcamalarTablosu[Hafta 7]) -> 3,186.00 TL | J26: =SUBTOTAL(109,HarcamalarTablosu[Hafta 8]) -> 0 | K26: =SUBTOTAL(109,HarcamalarTablosu[Hafta 9]) -> 0 | L26: =SUBTOTAL(109,HarcamalarTablosu[Hafta 10]) -> 0 | M26: =SUBTOTAL(109,HarcamalarTablosu[Hafta 11]) -> 0 | N26: =SUBTOTAL(109,HarcamalarTablosu[Hafta 12]) -> 0 | O26: =SUBTOTAL(109,HarcamalarTablosu[Hafta 13]) -> 0 | P26: =SUBTOTAL(109,HarcamalarTablosu[Hafta 14]) -> 0 | Q26: =SUBTOTAL(109,HarcamalarTablosu[Hafta 15]) -> 0 | R26: =SUBTOTAL(109,HarcamalarTablosu[Hafta 16]) -> 0 | S26: =SUBTOTAL(109,HarcamalarTablosu[Hafta 17]) -> 0 | T26: =SUBTOTAL(109,HarcamalarTablosu[Hafta 18]) -> 0 | U26: =SUBTOTAL(109,HarcamalarTablosu[Toplam]) -> 20,934.00 TL
